bitfinex/quotes_ETHUSD_20240707
["timestamp","ask_amount","ask_price","bid_price","bid_amount"]
[1720327936968,0.06578127,3034.6,3034.1,2.30709]
[1720327937605,0.06578127,3035.0,3034.2,2.30702]
[1720327937792,0.06578127,3035.1,3034.5,2.30673]
[1720327937997,0.06578127,3035.1,3034.6,0.08683731]
[1720327938193,0.48240713,3035.0,3034.2,2.30697]
[1720327938508,0.06578127,3034.9,3034.3,0.08698231]
[1720327938813,2.37230127,3034.9,3034.3,0.08698231]
[1720327939008,2.37230127,3034.9,3034.1,2.3071]
[1720327939174,2.37230127,3034.9,3034.2,0.08703065]
[1720327939412,0.51611384,3034.8,3034.2,0.08703065]
[1720327939593,0.06578127,3034.7,3034.2,0.08703065]
[1720327940812,0.06578127,3034.7,3033.6,3.0]
[1720327941110,0.06578127,3034.7,3033.7,0.08746586]
[1720327941308,2.4156,3034.5,3033.7,0.08746586]
[1720327941632,0.53801527,3034.4,3033.7,0.08746586]
[1720327942124,0.53801527,3034.4,3033.8,2.30732]
[1720327942416,0.53801527,3034.4,3033.9,0.08736915]
[1720327943436,2.48138127,3034.5,3033.9,0.08736915]
[1720327943718,0.06578127,3034.4,3034.0,2.30712]
[1720327944022,0.06578127,3034.4,3034.1,0.08727246]
[1720327944183,0.06578127,3034.4,3033.7,2.30739]
[1720327944386,0.06578127,3034.4,3033.8,0.08741751]
[1720327944615,0.06578127,3034.4,3033.5,2.30754]
[1720327944616,2.55509813,3034.3,3033.5,2.30754]
[1720327944924,0.06578127,3034.2,3033.6,0.08751422]
[1720327946093,0.24813813,3034.3,3033.6,0.15344096]
[1720327946287,0.06578127,3034.4,3033.8,2.30733]
[1720327946611,0.06578127,3034.4,3033.9,0.08736915]
[1720327947327,0.06578127,3034.4,3033.6,2.30746]
[1720327947902,0.06578127,3034.4,3033.7,0.08746586]
[1720327948118,5.38678127,3034.4,3033.7,0.08746586]
[1720327948426,2.30733,3033.9,3033.1,7.28]
[1720327948585,0.06578127,3033.8,3033.2,0.0877682]
[1720327949220,0.06578127,3034.1,3033.4,2.30763]
[1720327949413,0.06578127,3034.1,3033.5,0.08762309]
[1720327949927,0.06578127,3034.1,3033.4,2.30763]
[1720327950087,0.54813813,3034.0,3033.4,2.30763]
[1720327950296,0.06578127,3033.9,3033.2,2.30778]
[1720327950743,0.06578127,3033.9,3033.3,0.08771983]
[1720327950957,0.78023813,3034.3,3033.7,2.30735]
[1720327951231,0.06578127,3034.5,3034.0,2.30716]
[1720327951425,0.06578127,3034.5,3034.1,0.08739348]
[1720327951834,0.06578127,3034.5,3033.9,2.30724]
[1720327952143,0.06578127,3034.5,3034.0,0.08744182]
[1720327952439,2.78634113,3034.4,3033.5,3.0]
[1720327952635,0.06578127,3034.3,3033.6,0.08756609]
[1720327952950,2.30703,3034.2,3033.3,2.30769]
[1720327953106,0.06578127,3034.1,3033.7,0.08751773]
[1720327953305,0.23728113,3034.0,3033.3,2.30769]
[1720327953532,0.06578127,3033.9,3033.8,0.08746937]
[1720327954006,0.06578127,3033.9,3033.4,2.30763]
[1720327954342,0.06578127,3033.9,3033.5,0.08761445]
[1720327954540,0.06578127,3034.1,3033.5,0.08761445]
[1720327954743,0.23728113,3034.0,3033.5,0.08761445]
[1720327955043,0.06578127,3033.9,3033.5,0.08761445]
[1720327955344,2.78631113,3034.4,3033.5,0.08761445]
[1720327955345,0.06578127,3034.2,3033.5,2.39516445]
[1720327955523,0.06578127,3034.2,3033.6,2.30748]
[1720327955905,0.06578127,3034.2,3033.7,0.08751773]
[1720327956104,0.35098851,3034.2,3033.7,0.08751773]
[1720327958560,0.06578127,3034.2,3033.7,0.08751773]
[1720327959246,0.06578127,3034.2,3033.7,2.39492773]
[1720327959903,0.5451924,3034.4,3033.7,2.39492773]
[1720327960132,0.5451924,3034.4,3033.7,2.39491773]
[1720327961135,0.5451924,3034.4,3033.8,2.30733]
[1720327961433,0.5451924,3034.4,3033.9,0.08158226]
[1720327961834,0.06578127,3034.5,3033.9,2.38881226]
[1720327962309,0.06578127,3034.5,3034.0,2.30718]
[1720327962806,0.06578127,3034.5,3034.1,0.08148556]
[1720327963105,1.14104185,3034.4,3034.1,0.08148556]
[1720327963314,0.06578127,3034.3,3034.1,0.08148556]
[1720327963518,0.06578127,3034.5,3034.1,0.08148556]
[1720327963706,0.24873813,3034.4,3033.9,2.30725]
[1720327963913,0.24873813,3034.4,3034.2,0.08143722]
[1720327964143,0.24873813,3034.4,3033.9,2.30725]
[1720327964365,0.06578127,3034.5,3034.3,0.08138888]
[1720327964529,1.14101953,3034.4,3033.9,2.30725]
[1720327964729,0.06578127,3034.5,3033.9,2.30725]
[1720327964928,1.14101622,3034.4,3033.9,2.30725]
[1720327965250,0.06578127,3034.5,3033.9,2.30725]
[1720327965405,1.14100457,3034.4,3033.9,2.30725]
[1720327965607,2.48738127,3034.6,3033.9,2.30725]
[1720327965809,1.14098542,3034.5,3033.9,2.30725]
[1720327966042,1.14098542,3034.4,3033.9,2.30725]
[1720327966239,1.14098542,3034.5,3034.0,0.08153391]
[1720327966547,0.06578127,3034.4,3034.0,0.08153391]
[1720327967619,0.06578127,3034.5,3034.0,0.08153391]
[1720327967825,1.14100865,3034.4,3034.0,0.08153391]
[1720327968012,0.06578127,3034.5,3034.0,0.08153391]
[1720327968206,1.14098445,3034.4,3034.0,0.08153391]
[1720327968409,0.06578127,3034.5,3034.0,0.08153391]
[1720327968649,1.14102223,3034.4,3034.0,0.08153391]
[1720327968831,0.7621854,3034.5,3034.0,0.08153391]
[1720327969023,1.14103299,3034.4,3034.0,0.08153391]
[1720327969327,0.7621854,3034.5,3034.0,0.08153391]
[1720327969537,1.14102069,3034.4,3034.0,0.08153391]
[1720327969862,1.14102069,3034.3,3033.8,2.30733]
[1720327970068,1.14102069,3034.4,3033.9,0.08158226]
[1720327970351,1.20683632,3034.3,3033.9,0.08158226]
[1720327970512,1.14105505,3034.2,3033.9,0.08158226]
[1720327970738,0.69640413,3034.5,3033.9,0.08158226]
[1720327970942,1.14105365,3034.4,3033.9,0.08158226]
[1720327971164,1.14105365,3034.3,3033.9,0.08158226]
[1720327971363,0.69640413,3034.5,3033.9,0.08158226]
[1720327971572,1.14103439,3034.4,3033.9,0.08158226]
[1720327971743,1.14103439,3034.3,3033.9,0.08158226]
[1720327972072,1.1410244,3034.2,3033.9,0.08158226]
[1720327972248,1.1410244,3034.1,3033.6,9.58743]
[1720327972447,0.06578127,3034.3,3033.7,0.08167896]
[1720327972640,1.14112228,3034.2,3033.7,0.08167896]
[1720327972841,1.20690355,3034.1,3033.7,0.08167896]
[1720327973060,1.14115104,3034.0,3033.7,2.38908896]
[1720327973268,0.06578127,3034.4,3033.7,2.45501017]
[1720327973456,1.14107697,3034.3,3033.7,2.45501017]
[1720327973653,1.14107697,3034.2,3033.7,2.45501017]
[1720327973841,0.06578127,3034.6,3034.0,2.30717]
[1720327974062,1.14099594,3034.5,3034.1,0.08148556]
[1720327974265,2.23578127,3034.7,3034.1,0.08148556]
[1720327974581,1.1409554,3034.6,3034.1,0.08148556]
[1720327974767,1.1409554,3034.5,3034.1,0.08148556]
[1720327975080,2.23578127,3034.7,3034.1,0.08148556]
[1720327975277,1.6973774,3034.6,3034.1,0.08148556]
[1720327975472,1.1409459,3034.5,3034.1,0.08148556]
[1720327975645,1.1409459,3034.5,3034.1,2.38858556]
[1720327975839,3.25772496,3034.7,3034.1,2.38858556]
[1720327975840,1.1409459,3034.6,3034.1,2.38858556]
[1720327976042,1.71707215,3034.6,3034.1,2.38858556]
[1720327976339,1.1409459,3034.5,3034.1,2.38858556]
[1720327976577,3.25772496,3034.7,3034.1,2.38858556]
[1720327976895,1.14090691,3034.6,3034.1,2.38858556]
[1720327977040,2.23578127,3034.7,3034.1,2.38858556]
[1720327977243,3.25772496,3034.7,3034.1,2.38858556]
[1720327977551,3.19194369,3034.7,3034.2,0.06591111]
[1720327977750,2.17,3034.7,3034.2,0.06591111]
[1720327977958,2.17,3034.7,3034.3,0.08137178]
[1720327978169,3.19194369,3034.7,3034.3,0.08137178]
[1720327978375,3.19194369,3034.7,3034.2,0.06591111]
[1720327978574,3.19194369,3034.7,3034.3,2.30689]
[1720327978893,1.02194369,3034.8,3034.4,2.37278742]
[1720327979196,1.02194369,3034.9,3034.4,2.37278742]
[1720327979492,1.02194369,3034.9,3034.5,0.08127511]
[1720327979910,1.02194369,3034.9,3034.6,2.30672]
[1720327980391,1.02194369,3034.9,3034.7,0.08117845]
[1720327980792,1.02194369,3034.8,3034.6,2.30672]
[1720327981172,1.02194369,3035.2,3034.6,2.30672]
[1720327981361,1.08772496,3035.2,3034.8,2.30657]
[1720327981817,1.08772496,3035.3,3034.9,0.08092967]
[1720327982015,1.02194369,3035.2,3034.9,0.08092967]
[1720327982209,1.09078756,3035.3,3034.9,0.08092967]
[1720327982501,0.06578127,3035.2,3034.9,0.08092967]
[1720327982864,1.09078756,3035.2,3034.9,0.08092967]
[1720327983096,0.06578127,3035.2,3034.9,0.08092967]
[1720327983388,1.09078756,3035.3,3034.9,0.08092967]
[1720327984759,0.06578127,3035.2,3034.9,0.08092967]
[1720327985559,4.71477,3035.6,3034.9,0.08092967]
[1720327985560,1.02375373,3035.3,3034.9,0.08092967]
[1720327985779,0.06578127,3035.2,3034.9,0.08092967]
[1720327986018,1.089535,3035.2,3034.6,2.30672]
[1720327986180,1.089535,3035.2,3035.0,0.08066772]
[1720327986597,1.089535,3035.2,3034.6,2.30672]
[1720327986934,1.565609,3035.2,3034.5,2.3068]
[1720327987087,1.02375373,3034.9,3034.7,0.08082464]
[1720327987272,1.089535,3034.8,3034.3,7.28]
[1720327987472,1.089535,3034.8,3034.4,0.08096963]
[1720327987815,1.334989,3034.8,3034.4,0.08096963]
[1720327988709,1.02375373,3034.8,3034.4,0.08096963]
[1720327988892,1.02375373,3034.9,3034.4,0.08096963]
[1720327989100,1.089535,3035.0,3034.4,0.08096963]
[1720327989773,1.02375373,3034.9,3034.4,0.08096963]
[1720327991712,0.06578127,3034.8,3034.4,0.08096963]
[1720327992625,1.089535,3035.0,3034.4,2.38783963]
[1720327992920,0.59972267,3035.0,3034.4,2.38783963]
[1720327993067,1.6234764,3035.0,3034.4,2.38783963]
[1720327993288,0.59972267,3035.0,3034.4,2.38783963]
[1720327994033,1.6234764,3035.0,3034.4,2.38783963]
[1720327994448,2.3067,3034.7,3034.4,0.08096963]
[1720327994733,2.3068,3034.5,3033.8,7.28]
[1720327994894,0.06578127,3034.4,3033.7,2.3074]
[1720327995085,0.06578127,3034.4,3033.8,0.08128875]
[1720327995293,3.44810951,3034.3,3033.8,0.08128875]
[1720327995531,0.06578127,3034.2,3033.5,4.74185]
[1720327995714,1.796378,3034.2,3033.5,4.74185]
[1720327996024,1.796378,3034.2,3033.6,0.08143502]
[1720327999196,1.089535,3034.2,3033.6,0.08143502]
[1720328001343,1.08989785,3034.2,3033.6,0.08143502]
[1720328001501,0.06578127,3034.2,3033.6,0.08143502]
[1720328001710,3.39691332,3034.2,3033.6,0.08143502]
[1720328003150,1.08986332,3034.2,3033.6,0.08143502]
[1720328003501,1.08986332,3034.2,3033.6,2.38891502]
[1720328003700,1.02408205,3034.4,3033.8,2.30732]
[1720328003940,1.02408205,3034.4,3033.9,0.08146259]
[1720328004801,0.06578127,3034.3,3033.9,0.08146259]
[1720328005201,1.08986332,3034.3,3033.9,0.08146259]
[1720328005410,0.06578127,3034.3,3033.9,0.08146259]
[1720328006123,2.4764,3034.5,3034.1,2.3071]
[1720328006124,1.02408205,3034.5,3034.1,2.3071]
[1720328006409,1.08986332,3034.7,3034.1,2.3071]
[1720328006617,1.08986332,3034.7,3034.2,0.08131755]
[1720328007632,1.02408205,3034.6,3034.2,0.08131755]
[1720328007906,1.26961266,3034.6,3034.2,0.08131755]
[1720328008133,1.08986332,3034.5,3033.9,2.30724]
[1720328008806,1.02408205,3034.4,3034.0,0.08143304]
[1720328009005,1.08986332,3034.5,3034.0,0.08143304]
[1720328010959,1.02480324,3034.7,3034.1,2.3071]
[1720328011116,1.09058451,3034.7,3034.1,2.3071]
[1720328011308,1.02480324,3034.7,3034.2,0.14721086]
[1720328011612,1.02480324,3034.8,3034.4,2.30687]
[1720328012005,1.02480324,3034.8,3034.5,0.08114346]
[1720328012906,1.02480324,3034.8,3034.5,2.38793346]
[1720328013147,1.02504085,3035.0,3034.5,2.38793346]
[1720328013507,1.02504085,3035.2,3034.8,2.30656]
[1720328013749,1.02504085,3035.3,3034.9,2.38740939]
[1720328013907,1.77418269,3035.6,3034.9,2.38740939]
[1720328013908,1.02504085,3035.5,3034.9,0.08091939]
[1720328014108,1.09082212,3035.6,3035.1,2.30634]
[1720328014341,1.09082212,3035.6,3035.2,0.08077445]
[1720328014551,1.02504085,3035.6,3035.2,0.08077445]
[1720328016027,0.06578127,3035.5,3035.2,2.38704445]
[1720328016351,0.06578127,3035.6,3035.2,2.38704445]
[1720328016537,1.02504085,3035.7,3035.3,2.30618]
[1720328016908,1.02504085,3035.7,3035.4,0.08067783]
[1720328017158,1.09027688,3035.8,3035.4,4.69277783]
[1720328017309,1.09027688,3035.8,3035.4,2.38671783]
[1720328017310,0.06578127,3035.8,3035.4,2.38671783]
[1720328017510,1.09027688,3035.9,3035.4,2.38671783]
[1720328020346,1.3351847,3035.9,3035.4,0.08067783]
[1720328020516,1.0895576,3035.9,3035.4,0.08067783]
[1720328020713,0.06578127,3035.9,3035.2,2.30626]
[1720328020916,1.02362563,3035.9,3035.3,2.38691614]
[1720328021123,0.06578127,3035.9,3035.3,2.30619]
[1720328021327,0.06578127,3035.9,3035.4,2.30606]
[1720328021616,0.06578127,3035.9,3035.4,2.38654306]
[1720328021836,0.06578127,3035.9,3035.4,0.08048306]
[1720328022042,1.0894069,3036.0,3035.4,0.08048306]
[1720328022244,1.63483101,3036.0,3035.4,0.08048306]
[1720328022655,1.63483101,3036.0,3035.4,2.38659306]
[1720328023356,0.61120538,3036.0,3035.4,2.38659306]
[1720328023544,1.63441565,3036.0,3035.4,2.38659306]
[1720328023729,0.06578127,3035.9,3035.4,2.38659306]
[1720328026215,0.61120538,3036.0,3035.4,2.38659306]
[1720328026910,0.61120538,3036.0,3035.4,0.08048306]
[1720328026911,1.63441565,3036.0,3035.4,0.08048306]
[1720328027133,1.63441565,3036.0,3035.3,2.30619]
[1720328027373,0.39400056,3035.9,3035.5,0.08018363]
[1720328027575,0.06578127,3035.8,3035.4,0.08023193]
[1720328027740,0.49919489,3035.8,3035.6,0.08013533]
[1720328027933,0.49919489,3035.8,3035.5,0.08018363]
[1720328028242,0.49919489,3035.8,3035.1,2.3063]
[1720328028243,0.49919489,3035.8,3035.7,0.08008704]
[1720328028451,2.94989489,3035.8,3035.1,2.3063]
[1720328028659,2.94989489,3035.8,3035.2,0.08032513]
[1720328029180,2.30599,3035.6,3035.2,0.08032513]
[1720328029335,0.06578127,3035.5,3035.2,0.08032513]
[1720328029534,0.06578127,3035.5,3034.8,9.58656]
[1720328029735,0.06578127,3035.5,3035.3,0.08029049]
[1720328030048,0.06578127,3035.5,3034.8,2.30656]
[1720328030260,0.06578127,3035.5,3034.9,0.08048374]
[1720328030571,0.69225386,3035.5,3034.9,0.08048374]
[1720328031938,2.30612,3035.4,3034.9,0.08048374]
[1720328032156,0.06578127,3035.3,3034.9,0.08048374]
[1720328032500,0.06578127,3035.3,3034.5,2.30679]
[1720328032684,0.06578127,3035.3,3034.6,0.08065603]
[1720328032883,0.06578127,3035.3,3034.6,2.38736603]
[1720328033268,0.06578127,3035.3,3034.6,2.38737603]
[1720328033475,0.46782777,3035.3,3034.6,0.08065603]
[1720328033675,0.06578127,3035.2,3034.6,0.08065603]
[1720328033879,0.06578127,3035.2,3034.3,7.28]
[1720328033880,4.73125,3035.1,3034.3,7.28]
[1720328034076,2.37221127,3035.0,3034.4,0.0807527]
[1720328034555,0.06578127,3035.0,3034.4,0.0807527]
[1720328036616,0.5454834,3035.0,3034.4,0.0807527]
[1720328037212,0.06578127,3035.0,3034.4,0.0807527]
[1720328037398,1.02214659,3035.5,3034.8,2.30656]
[1720328037601,2.22869342,3035.4,3034.8,2.30656]
[1720328037779,2.22869342,3035.4,3034.9,0.08062206]
[1720328037780,1.14076556,3035.3,3034.9,0.08062206]
[1720328037976,0.06578127,3035.4,3034.9,0.08062206]
[1720328038180,0.70517006,3035.4,3034.8,2.30656]
[1720328038590,1.14072277,3035.3,3034.8,2.30656]
[1720328038812,0.70517006,3035.4,3034.8,2.30656]
[1720328038992,1.14073338,3035.3,3034.8,2.30656]
[1720328039167,0.70517006,3035.4,3034.8,2.30656]
[1720328039367,1.14070673,3035.3,3034.8,2.30656]
[1720328039569,0.70517006,3035.4,3034.7,2.30658]
[1720328039774,1.3134502,3035.3,3034.5,2.30678]
[1720328039995,0.06578127,3035.2,3034.8,0.08067038]
[1720328040217,6.00369633,3035.2,3034.3,2.30693]
[1720328040400,1.14077506,3035.1,3034.9,0.08062206]
[1720328040582,0.76840194,3035.0,3034.3,2.30693]
[1720328040774,1.14077506,3034.9,3034.3,2.30693]
[1720328040982,1.14077506,3034.9,3034.4,0.08091494]
[1720328041192,0.76840194,3035.0,3034.4,0.08091494]
[1720328041376,1.14084897,3034.9,3034.4,0.08091494]
[1720328041719,1.0225104,3035.4,3034.6,2.30671]
[1720328041869,0.06578127,3035.3,3034.7,0.08078191]
[1720328042072,1.14074055,3035.2,3034.7,0.08078191]
[1720328042312,0.06578127,3035.3,3034.7,2.30662]
[1720328042715,0.06578127,3035.3,3034.8,0.08075067]
[1720328042887,1.08829167,3035.6,3034.9,2.4754]
[1720328043099,1.08829167,3035.6,3034.3,2.30691]
[1720328043100,1.14064425,3035.5,3035.0,2.30636]
[1720328043306,1.14064425,3035.4,3035.0,2.38699866]
[1720328043476,1.14064425,3035.5,3035.0,0.08063866]
[1720328043677,0.06578127,3035.4,3034.9,2.30648]
[1720328043977,1.14064425,3035.3,3035.0,0.08063866]
[1720328044190,0.06578127,3035.4,3035.0,0.08063866]
[1720328044394,1.14069081,3035.3,3035.0,0.08063866]
[1720328044590,0.06578127,3035.4,3035.0,0.08063866]
[1720328044797,1.14069209,3035.3,3035.0,0.08063866]
[1720328045180,0.06578127,3035.4,3035.0,0.08063866]
[1720328045374,1.14068957,3035.3,3035.0,0.08063866]
[1720328045605,0.06578127,3035.4,3035.0,0.08063866]
[1720328046076,0.06578127,3035.5,3035.0,0.08063866]
[1720328046314,0.06578127,3035.5,3035.0,2.38705866]
[1720328046315,1.14067939,3035.4,3035.0,2.38705866]
[1720328046507,1.0225104,3035.5,3035.0,2.38705866]
[1720328046702,1.1406728,3035.4,3035.0,2.38705866]
[1720328046905,1.0225104,3035.5,3035.0,2.38705866]
[1720328047115,1.14067244,3035.4,3035.0,2.38705866]
[1720328047315,1.0225104,3035.5,3035.0,2.38705866]
[1720328047494,1.14067288,3035.4,3035.0,2.38705866]
[1720328047687,1.0225104,3035.5,3035.0,2.38705866]
[1720328047892,1.1406727,3035.4,3035.0,2.38705866]
[1720328048136,1.0225104,3035.5,3035.0,2.38705866]
[1720328048351,0.06578127,3035.6,3035.0,2.38705866]
[1720328048506,2.16492446,3035.5,3035.0,2.38705866]
[1720328048701,1.14067251,3035.4,3035.0,2.38705866]
[1720328048893,1.36566927,3035.6,3035.3,2.30613]
[1720328048894,1.02425195,3035.6,3035.3,2.30613]
[1720328049124,1.02425195,3035.8,3035.4,2.38650076]
[1720328049432,1.09003322,3035.9,3035.4,2.38650076]
[1720328049656,1.14047881,3035.8,3035.4,2.38650076]
[1720328049838,1.80168347,3035.9,3035.4,2.30611]
[1720328050012,1.14048275,3035.8,3035.4,2.30611]
[1720328050192,1.02425195,3035.9,3035.4,2.30611]
[1720328050391,1.14049855,3035.8,3035.5,0.08028268]
[1720328050630,1.02425195,3035.9,3035.5,0.08028268]
[1720328050835,1.14049941,3035.8,3035.5,0.08028268]
[1720328050999,1.02425195,3035.9,3035.5,2.38630268]
[1720328051205,1.36566927,3036.0,3035.5,2.38630268]
[1720328051206,1.02425195,3036.0,3035.5,2.38630268]
[1720328051406,0.06578127,3036.1,3035.5,2.38630268]
[1720328051618,2.16542942,3036.0,3035.5,2.38630268]
[1720328051805,1.09078065,3036.1,3035.5,2.38630268]
[1720328052018,1.7961093,3036.1,3035.5,2.38630268]
[1720328052325,1.14040047,3036.0,3035.5,2.38630268]
[1720328052533,1.09078065,3036.1,3035.5,2.38630268]
[1720328053228,1.02499938,3035.9,3035.5,2.38630268]
[1720328053454,0.06578127,3035.8,3035.5,0.08028268]
[1720328053658,4.45594609,3035.7,3035.5,0.08028268]
[1720328053959,2.82016668,3035.6,3035.0,9.5864]
[1720328054113,1.67961997,3035.6,3035.0,7.28]
[1720328054318,2.16560257,3035.5,3035.1,0.08043321]
[1720328054668,0.06578127,3035.4,3035.1,0.08043321]
[1720328054957,1.09078065,3035.4,3035.1,0.08043321]
[1720328055137,2.50541194,3035.3,3035.1,0.08043321]
[1720328055340,1.09078065,3035.2,3035.1,0.08043321]
[1720328056212,2.23150765,3035.2,3035.1,0.08043321]
[1720328056414,4.87944411,3035.2,3035.1,0.08043321]
[1720328056647,2.2904,3035.1,3034.4,9.58687]
[1720328056849,1.09139144,3035.0,3034.4,2.30687]
[1720328057034,1.02561017,3034.9,3034.4,2.30687]
[1720328057244,0.06578127,3034.8,3034.4,2.30687]
[1720328057815,0.06578127,3034.8,3034.5,2.3068]
[1720328058013,1.0257596,3035.0,3034.5,2.3068]
[1720328058220,1.02578352,3035.1,3034.9,2.3065]
[1720328058556,1.02578352,3035.2,3034.9,2.3065]
[1720328059256,1.02578352,3035.1,3034.7,2.30657]
[1720328060670,1.09156479,3035.2,3034.7,2.30657]
[1720328061164,1.02578352,3035.1,3034.7,2.30657]
[1720328062263,1.09156479,3035.2,3034.7,2.30657]
[1720328062462,1.02578352,3035.1,3034.7,2.30657]
[1720328062677,1.02578352,3035.4,3035.1,2.30634]
[1720328063034,1.02578352,3035.4,3035.2,0.08046006]
[1720328063236,1.02578352,3035.5,3035.2,0.08046006]
[1720328064376,1.02578352,3035.5,3035.2,2.38672006]
[1720328066354,1.02578352,3035.7,3035.4,2.30605]
[1720328066549,1.02578352,3035.8,3035.5,0.08031344]
[1720328067346,1.02578352,3035.8,3035.5,2.38634344]
[1720328067563,1.02578352,3035.9,3035.5,2.38634344]
[1720328067768,1.7755232,3036.2,3035.5,2.38634344]
[1720328067769,0.06578127,3036.2,3035.5,2.38634344]
[1720328068081,1.02582129,3035.9,3035.5,2.38634344]
[1720328068284,1.02582129,3036.0,3035.5,2.38634344]
[1720328068649,1.02582129,3035.9,3035.5,2.38634344]
[1720328069862,1.02582129,3035.9,3035.6,2.30595]
[1720328070073,1.02582129,3036.0,3035.6,2.30595]
[1720328070267,1.02582129,3036.0,3035.7,0.08016731]
[1720328070478,0.06578127,3036.2,3035.7,0.08016731]
[1720328070652,1.02565332,3036.0,3035.7,0.08016731]
[1720328071078,1.02565332,3036.1,3035.7,0.08016731]
[1720328073086,1.02565332,3036.1,3035.7,2.38605731]
[1720328073767,1.02565332,3036.2,3035.7,2.38605731]
[1720328073975,1.50059055,3036.2,3035.7,2.38605731]
[1720328074993,1.56637182,3036.2,3035.7,2.38605731]
[1720328075294,1.02565332,3036.1,3035.7,2.38605731]
[1720328077476,1.02495157,3036.2,3035.7,2.38605731]
[1720328079497,1.02495157,3036.2,3035.8,2.30581]
[1720328079865,1.02495157,3036.3,3035.9,0.08007073]
[1720328080680,1.09059461,3036.4,3035.9,0.08007073]
[1720328080999,1.02481334,3036.3,3035.9,0.08007073]
[1720328087918,0.968,3036.2,3035.9,0.08007073]
[1720328088239,1.02481334,3036.3,3035.9,0.08007073]
[1720328088391,1.99281334,3036.3,3035.9,0.08007073]
[1720328089921,1.02481334,3036.3,3035.9,0.08007073]
[1720328090294,0.06578127,3036.4,3035.9,0.08007073]
[1720328090494,2.16553834,3036.3,3035.9,0.08007073]
[1720328090690,1.14032845,3036.2,3035.9,0.08007073]
[1720328090899,1.02520989,3036.3,3036.1,2.30557]
[1720328091195,1.02520989,3036.7,3036.4,2.30536]
[1720328091392,1.02520989,3036.8,3036.4,2.30536]
[1720328091616,1.02520989,3036.8,3036.5,0.07957782]
[1720328091617,1.14012575,3036.7,3036.5,0.07957782]
[1720328091837,1.14012575,3036.7,3036.4,2.30536]
[1720328091838,1.02520989,3036.8,3036.4,2.30536]
[1720328092038,1.1400998,3036.7,3036.6,0.07952955]
[1720328092370,1.1400998,3036.7,3036.4,2.30536]
[1720328092660,1.02520989,3036.8,3036.5,0.07957782]
[1720328092815,1.14011421,3036.7,3036.5,0.07957782]
[1720328093018,1.02520989,3036.8,3036.5,0.07957782]
[1720328093256,1.14011384,3036.7,3036.5,0.07957782]
[1720328093453,1.02520989,3036.8,3036.5,0.07957782]
[1720328093753,1.14010749,3036.7,3036.5,0.07957782]
[1720328093938,1.02520989,3036.9,3036.5,0.07957782]
[1720328094139,1.14010801,3036.8,3036.5,0.07957782]
[1720328094311,1.14010801,3036.7,3036.5,0.07957782]
[1720328094516,1.02520989,3036.9,3036.5,0.07957782]
[1720328094748,1.14010921,3036.8,3036.5,0.07957782]
[1720328094933,1.14010921,3036.7,3036.5,0.07957782]
[1720328095109,1.02520989,3036.9,3036.5,0.07957782]
[1720328095110,1.09099116,3036.9,3036.5,0.07957782]
[1720328095314,1.14010747,3036.8,3036.5,0.07957782]
[1720328095525,1.14010747,3036.7,3036.5,0.07957782]
[1720328095746,1.09099116,3036.9,3036.3,2.30543]
[1720328095931,1.14011802,3036.8,3036.4,0.07952369]
[1720328096148,1.14011802,3036.7,3036.4,0.07952369]
[1720328096347,1.09099116,3036.9,3036.4,0.07952369]
[1720328096563,1.1401182,3036.8,3036.6,2.4366]
[1720328096755,1.02428715,3037.0,3036.6,2.30519]
[1720328096916,1.14006759,3036.9,3036.7,0.07937889]
[1720328097120,1.14005582,3036.8,3036.7,0.07937889]
[1720328097426,1.14005582,3036.8,3036.4,2.30531]
[1720328097618,0.06578127,3036.9,3036.7,0.07937889]
[1720328097959,0.06578127,3036.9,3036.4,2.30531]
[1720328097960,1.14010578,3036.8,3036.4,2.30531]
[1720328098155,0.06578127,3036.9,3036.4,2.30531]
[1720328098357,1.14011062,3036.8,3036.3,2.4366]
[1720328098575,0.06578127,3036.9,3036.3,2.4366]
[1720328098731,1.14011036,3036.8,3036.3,2.4366]
[1720328098935,0.06578127,3037.0,3036.4,2.30534]
[1720328099244,1.14005668,3036.9,3036.4,2.30534]
[1720328099458,0.06578127,3037.0,3036.4,2.30534]
[1720328099655,1.14005329,3036.9,3036.4,2.30534]
[1720328099868,0.06578127,3037.0,3036.4,2.30534]
[1720328100083,0.06578127,3037.0,3036.3,4.74202]
[1720328100084,1.14007196,3036.8,3036.3,4.74202]
[1720328100277,0.06578127,3037.0,3036.3,2.4366]
[1720328100278,2.37069127,3037.0,3036.3,2.4366]
[1720328100429,2.37069127,3037.0,3036.1,2.30558]
[1720328100430,6.39765919,3036.9,3036.2,2.30548]
[1720328100774,1.14009708,3036.8,3036.2,2.30548]
[1720328101272,1.14009708,3036.8,3036.3,2.38488076]
[1720328102508,0.06578127,3036.9,3036.3,2.38488076]
[1720328102712,1.14012541,3036.8,3036.3,2.38488076]
[1720328103018,1.09006842,3036.9,3036.3,2.38488076]
[1720328103211,1.14012855,3036.8,3036.3,2.38488076]
[1720328103374,1.09006842,3036.9,3036.3,2.38488076]
[1720328103699,1.14013048,3036.8,3036.3,2.38488076]
[1720328103865,1.09006842,3036.9,3036.3,2.38488076]
[1720328104079,1.1401115,3036.8,3036.3,2.38488076]
[1720328104397,1.09006842,3036.9,3036.3,2.38488076]
[1720328104558,1.14012289,3036.8,3036.3,2.38488076]
[1720328104758,1.09006842,3036.9,3036.3,2.38488076]
[1720328104965,1.14011194,3036.8,3036.3,2.38488076]
[1720328105161,1.09006842,3036.9,3036.3,2.38488076]
[1720328105364,2.1644107,3036.8,3036.3,2.38488076]
[1720328105685,0.06578127,3036.9,3036.3,2.38488076]
[1720328105996,1.14012814,3036.8,3036.3,2.38488076]
[1720328106212,1.14012606,3036.7,3036.3,2.38488076]
[1720328106507,1.02500738,3037.0,3036.5,2.30527]
[1720328106671,1.14005511,3036.9,3036.5,2.30527]
[1720328106995,1.02500738,3037.0,3036.6,0.07928376]
[1720328107212,1.1400405,3036.9,3036.6,0.07928376]
[1720328107381,1.02500738,3037.0,3036.6,2.51588376]
[1720328107699,1.02500738,3037.0,3036.6,4.82107376]
[1720328108303,1.02500738,3037.1,3036.8,2.30504]
[1720328108665,1.02500738,3037.1,3036.9,0.07911679]
[1720328108866,0.06578127,3037.3,3036.9,0.07911679]
[1720328109069,1.02589769,3037.1,3036.9,0.07911679]
[1720328109274,1.02589769,3037.1,3036.8,2.30504]
[1720328109605,1.02589769,3037.1,3036.9,0.07911679]
[1720328110517,2.16590684,3037.0,3036.9,0.07911679]
[1720328111015,6.22985977,3037.0,3036.9,0.07911679]
[1720328111214,6.22985977,3037.0,3036.4,7.28]
[1720328111215,5.11688466,3037.0,3036.4,7.28]
[1720328111417,1.02604445,3036.7,3036.4,7.28]
[1720328111578,1.09182572,3036.7,3036.4,7.28]
[1720328112200,1.02604445,3036.6,3036.4,7.28]
[1720328112994,0.06578127,3036.5,3036.4,7.28]
[1720328113240,1.09182572,3036.5,3036.4,7.28]